Cogmind - Beta 12 @@@ ROGUE MODE // 2023.05.31 @ 20:57:09 Player: LustLizard Result: Destroyed by as-48700 with Assembled Heavy Rifle Performance ------------- Evolutions (0) 0 Regions Visited (2) 400 Robots Destroyed (21) 105 Value Destroyed (555) 555 Prototype IDs (0) 0 Alien Tech Used (0) 0 Bonus (0) 0 TOTAL SCORE: 1060 Bonus ------- None Cogmind --------- Core Integrity 0/250 Matter 130/300 Energy 250/250 System Corruption 1% Temperature Cool (15) Movement Walking (330) Ox3 Location -10/Mines Parts ------- > --- POWER (1) -------- Ion Engine > --- PROPULSION (2) --- Aluminum Leg > --- UTILITY (2) ------ Large Storage Unit Improved Targeting Computer > --- WEAPON (2) ------- Autogun Autogun > --- INVENTORY (15) --- Light Treads Aluminum Leg Aluminum Leg Aluminum Leg Aluminum Leg Compact Wheel Improved Heat Sink Large Storage Unit Signal Interpreter EM Pulse Gun Particle Cannon Autogun Peak State ------------ > --- POWER ------------ Ion Engine > --- PROPULSION ------- Aluminum Leg Aluminum Leg > --- UTILITY ---------- Large Storage Unit Improved Targeting Computer > --- WEAPON ----------- Autogun Autogun > --- INVENTORY -------- Light Treads Aluminum Leg Aluminum Leg Aluminum Leg Aluminum Leg Aluminum Leg Compact Wheel Improved Heat Sink Large Storage Unit Signal Interpreter EM Pulse Gun Particle Cannon Autogun Autogun Grenade Launcher [Rating: 12] Favorites ----------- Power Ion Engine Engine Ion Engine Propulsion Aluminum Leg Treads Light Treads Leg Aluminum Leg Wheel Compact Wheel Utility Improved Targeting Computer Storage Large Storage Unit Processor Improved Targeting Computer Weapon Autogun Energy Gun EM Pulse Gun Ballistic Gun Autogun Launcher Grenade Launcher Build | -11 -10 -10 ------- Run | Jun Mat Min Slots Evolved . | . . . Power . | . . . Propulsion . | . . . Utility . | . . . Weapon . | . . . Parts Attached 29 | 7 14 8 Power 2 | 1 1 . Engine 2 | 1 1 . Core . | . . . Reactor . | . . . Propulsion 12 | 2 6 4 Treads 2 | . 2 . Leg 6 | . 2 4 Wheel 4 | 2 2 . Hover . | . . . Flight . | . . . Utility 3 | 1 2 . Device . | . . . Storage 2 | 1 1 . Processor 1 | . 1 . Hackware . | . . . Protection . | . . . Artifact . | . . . Weapon 12 | 3 5 4 Energy Gun 1 | 1 . . Energy Cannon . | . . . Ballistic Gun 9 | 2 4 3 Ballistic Cannon . | . . . Launcher 2 | . 1 1 Special Weapon . | . . . Impact Weapon . | . . . Slashing Weapon . | . . . Piercing Weapon . | . . . Special Melee Weapon . | . . . Unidentified Prototypes . | . . . Parts Lost 3 | . . 3 Power . | . . . Propulsion 1 | . . 1 Utility . | . . . Weapon 2 | . . 2 Highest Loss Streak 3 | . . 3 To Critical Strikes . | . . . Average Slot Usage (%) 96 | . 95 99 Engine 14 | . 14 14 Treads 6 | . 9 . Leg 16 | . 11 27 Wheel 4 | . 7 . Storage 14 | . 14 14 Processor 11 | . 10 14 Ballistic Gun 23 | . 27 15 Launcher 4 | . . 12 Naked Turns . | . . . Heaviest Build 31 | 13 31 31 Greatest Support 40 | 32 40 20 Greatest Overweight (x) 1 | . 1 1 Average Overweight (x) . | . . 1 Largest Inventory Capacity 15 | 8 15 15 Average Capacity 12 | 7 12 15 Most Carried 15 | 6 15 15 Average Carried 11 | 3 11 14 Final Capacity 15 | 8 15 15 Final Carried 15 | 6 15 12 Class Distribution -------------------- 100% | Mutant Dominant Class ---------------- Mutant | -10/Materials Mutant | -10/Mines Resources | -11 -10 -10 ----------- Run | Jun Mat Min Matter Collected 669 | 215 335 119 Remotely . | . . . Salvage Created 615 | . 428 187 Parts 42 | . 26 16 Haulers Intercepted . | . . . Recyclers Shooed 2 | . 2 . Parts Field Recycled . | . . . Retrieved Matter . | . . . Parts Self-Destructed . | . . . Prevented . | . . . Kills | -11 -10 -10 ------- Run | Jun Mat Min Combat Hostiles Destroyed 32 | . 11 21 Guns 14 | . 11 3 AOE 18 | . . 18 Classes Destroyed 6 | . 4 2 Builder 1 | . 1 . Tunneler 1 | . . 1 Watcher 1 | . 1 . Swarmer 6 | . 3 3 Grunt 12 | . 8 4 Assembled 14 | . . 14 Best Kill Streak 14 | . 3 14 Combat Bots Only 14 | . 3 14 Max Kills in Single Turn 4 | . 1 4 Gunslinging . | . . . Exploded 4 | . . 4 Melee . | . . . Uniques/NPCs Destroyed . | . . . Combat | -11 -10 -10 -------- Run | Jun Mat Min Damage Taken 1046 | . 309 737 Core 253 | . 27 226 Absorbed by Shields . | . . . Regen/Repaired (Parts) 63 | . 63 . Core Remaining (%) 100 | 100 . . Volleys Fired 50 | . 29 21 Largest 2 | . 2 2 Hottest 53 | . 46 53 Shots Fired 95 | . 58 37 Gun 84 | . 58 26 Cannon . | . . . Launcher 11 | . . 11 Special . | . . . Kinetic 84 | . 58 26 Thermal . | . . . Explosive 11 | . . 11 Electromagnetic . | . . . Robot Hit Streak 8 | . 8 5 Robot Miss Streak 4 | . 4 1 Penetration Max . | . . . Secondary Targets 3 | . 2 1 Max Gunslinging Chain 1 | . 1 1 Shots Hit Robots 54 | . 33 21 Core Hits 64 | . 19 45 Critical Kills 1 | . 1 . Critical Parts Destroyed . | . . . Critical Strikes 1 | . 1 . Destroy 1 | . 1 . Melee Attacks . | . . . Impact . | . . . Slashing . | . . . Piercing . | . . . Sneak Attacks . | . . . Combat Hostiles . | . . . Follow-up Attacks . | . . . Damage Inflicted 1991 | . 419 1572 Guns 630 | . 404 226 Cannons . | . . . Explosions 1346 | . . 1346 Melee . | . . . Ramming 15 | . 15 . Kinetic 630 | . 404 226 Thermal . | . . . Explosive 1346 | . . 1346 Electromagnetic . | . . . Impact . | . . . Slashing . | . . . Piercing . | . . . Highest Corruption 1 | . 1 1 Average Corruption 1 | . 1 1 Corruption Purged . | . . . Corruption Blocked . | . . . Effects 8 | . 2 6 Message Errors 1 | . . 1 Heat Flow Errors 1 | . 1 . Data Loss (minor) 4 | . 1 3 Data Loss (major) 1 | . . 1 Misfires 1 | . . 1 Overload Shots . | . . . Overflow Damage 95 | . . 95 Projectiles . | . . . Explosions 95 | . . 95 Melee . | . . . Knockbacks . | . . . Impact . | . . . Kinetic . | . . . Secondary . | . . . Self-Inflicted Damage 118 | . 7 111 Shots 6 | . . 6 Rammed 4 | . 4 . Targets Rammed 4 | . 4 . Kicked . | . . . Crushed . | . . . Highest Temperature 267 | . 267 32 Average Temperature 28 | . 37 13 Received Heat Transfer 232 | . 120 112 Siege Activations . | . . . Robots Corrupted . | . . . Combat Hostiles . | . . . Parts Fried . | . . . Impact Corruptions . | . . . Robots Melted . | . . . Combat Hostiles . | . . . Parts Melted . | . . . Heat Transferred . | . . . Parts Sabotaged . | . . . Parts Stolen . | . . . Parts Stripped . | . . . Power Chain Reactions . | . . . Missiles Intercepted . | . . . Alert | -11 -10 -10 ------- Run | Jun Mat Min Peak Influence 231 | . 226 231 Initial 2 | . . 2 Average 92 | . 80 128 Maximum Alert Level 1 | . 1 1 Low Security (%) 89 | 100 98 71 Level 1 10 | . 1 28 Level 2 . | . . . Level 3 . | . . . Level 4 . | . . . Level 5 . | . . . High Security . | . . . Max Security . | . . . Squads Dispatched 2 | . 2 . Investigation 1 | . 1 . Extermination . | . . . Reinforcement 1 | . 1 . Assault . | . . . Garrison . | . . . Intercept . | . . . Searches Triggered . | . . . Construction Impeded . | . . . Haulers Reinforced . | . . . Active Scanning Responses . | . . . Cargo Convoy Interrupts . | . . . Stealth | -11 -10 -10 --------- Run | Jun Mat Min Distress Signals . | . . . Communications Jammed . | . . . Distress Signals . | . . . Times Spotted 40 | . 15 25 Peak Tracking Total 11 | . 3 11 Tactical Retreats 2 | . 2 . Traps | -11 -10 -10 ------- Run | Jun Mat Min Traps Triggered 1 | . 1 . Indirectly . | . . . Trap Hack Attempts . | . . . Triggered . | . . . Disarmed . | . . . Reprogrammed . | . . . Reused . | . . . Traps Extracted . | . . . Installed . | . . . Triggered . | . . . Machines | -11 -10 -10 ---------- Run | Jun Mat Min Machines Disabled 2 | . . 2 Max in Single Turn 1 | . . 1 Machines Repaired . | . . . Machines Sabotaged . | . . . Overloaded Fab Kills . | . . . Hacking | -11 -10 -10 --------- Run | Jun Mat Min Machines Accessed 4 | . 4 . Terminals 3 | . 3 . Fabricators . | . . . Repair Stations 1 | . 1 . Recycling Units . | . . . Scanalyzers . | . . . Garrison Access . | . . . Total Hacks 10 | . 10 . Successful 6 | . 6 . Failed 4 | . 4 . Catastrophic 1 | . 1 . Database Lockouts . | . . . Manual 5 | . 5 . Terminals 6 | . 6 . Fabricators . | . . . Repair Stations 4 | . 4 . Recycling Units . | . . . Scanalyzers . | . . . Garrison Access . | . . . Terminal Hacks 2 | . 2 . Robot Analysis 1 | . 1 . Branch Access Points 1 | . 1 . Fabricator Hacks . | . . . Repair Station Hacks 4 | . 4 . Scan Component 2 | . 2 . Repair 2 | . 2 . Recycling Unit Hacks . | . . . Scanalyzer . | . . . Garrison Access Hacks . | . . . Unauthorized Hacks . | . . . Terminals . | . . . Fabricators . | . . . Repair Stations . | . . . Recycling Units . | . . . Scanalyzers . | . . . Garrison Access . | . . . Data Cores Recovered . | . . . Used . | . . . Hacking Detections 3 | . 3 . Full Trace Events 1 | . 1 . Feedback Events . | . . . Feedback Blocked . | . . . Robot Schematics Acquired . | . . . Robots Built . | . . . Authchips . | . . . Time . | . . . Total Robot Build Rating . | . . . Part Schematics Acquired . | . . . Parts Built . | . . . Authchips . | . . . Time . | . . . Total Part Build Rating . | . . . Parts Repaired 2 | . 2 . Time 64 | . 64 . Parts Recycled . | . . . Recycled Matter . | . . . Retrieved Matter . | . . . Retrieved Components . | . . . Parts Scanalyzed . | . . . Part Schematics Acquired . | . . . Parts Damaged . | . . . Bothacking | -11 -10 -10 ------------ Run | Jun Mat Min Used RIF Installer . | . . . Robots Hacked . | . . . Non-combat . | . . . Combat . | . . . Robot Hacks Applied . | . . . Relay Couplers Released . | . . . Fabnet Peak Effective % . | . . . Robots Rewired . | . . . Allies Hacked . | . . . Hacks Repelled . | . . . Allies | -11 -10 -10 -------- Run | Jun Mat Min Total Allies . | . . . Largest Group . | . . . Highest-Rated Group . | . . . Highest-Rated Ally . | . . . Total Orders . | . . . Ally Attacks . | . . . Total Damage . | . . . Kills . | . . . Allies Corrupted . | . . . Allies Melted . | . . . Intel | -11 -10 -10 ------- Run | Jun Mat Min Robot Analysis Total 1 | . 1 . Derelict Logs Recovered . | . . . Drone Launches . | . . . Drone Recoveries . | . . . Exploration | -11 -10 -10 ------------- Run | Jun Mat Min Turns Passed 1555 | 66 992 497 Spaces Moved 784 | 52 504 228 Core 3 | 3 . . Treads 40 | . 40 . Legs 430 | . 202 228 Wheels 311 | 49 262 . Hover . | . . . Flight . | . . . Fastest Speed 50 | 50 100 190 Average Speed 154 | 97 143 190 Slowest Speed 190 | 100 190 190 Overloaded Moves . | . . . Propulsion Burnouts . | . . . Robots Hopped . | . . . Cave-ins Triggered . | . . . Exploration Rate (%) 39 | 3 56 58 Regions Visited 2 Branch Regions 1 Pre-discovered Areas . | . . . Known Exits Taken 1 | . 1 . Unknown Exits Taken 1 | 1 . . Scrap Searched 1 | . . 1 Spaces Dug . | . . . Terrain Destroyed 65 | . . 65 Melee . | . . . Projectile . | . . . AOE 65 | . . 65 Terrain Rammed . | . . . Walls Destroyed . | . . . Machines Disabled . | . . . Actions | -11 -10 -10 --------- Run | Jun Mat Min Total 1052 | 64 725 263 Wait 154 | . 153 1 Move 782 | 51 503 228 Hop . | . . . Pick Up 21 | 6 14 1 Fast Attach 11 | 6 5 . Attach 7 | . 4 3 Detach . | . . . Swap 11 | 1 5 5 Drop 12 | . 8 4 Fire 50 | . 29 21 Melee . | . . . Ram 4 | . 4 . Kick . | . . . Crush . | . . . Escape Stasis . | . . . Rewire . | . . . Trap . | . . . Miscellaneous . | . . . Route ------- -11/Junkyard -10/Materials (discovered 3 exits: [*Mat] / *Min x2) -10/Mines History --------- Turn | Location | Event 21 | -11/Junkyard | Discovered new exit (range 16) 67 | -11/Junkyard | Entered Materials 303 | -10/Materials | Build established: Mutant 423 | -10/Materials | Discovered new exit (range 6) 562 | -10/Materials | Repaired Autogun 596 | -10/Materials | Repaired Autogun 683 | -10/Materials | Discovered new exit (range 14) 787 | -10/Materials | Discovered new exit (range 11) 1012 | -10/Materials | Identified exit to Mines 1059 | -10/Materials | Entered Mines 1523 | -10/Mines | Assembled infested the area 1538 | -10/Mines | Core integrity fell below 50% 1548 | -10/Mines | Core integrity fell below 20% 1556 | -10/Mines | Destroyed by as-48700 with Assembled Heavy Rifle Last Messages --------------- as-70453 destroyed. Knocked back. Aluminum Leg destroyed. Destroyed Asb. Hover Unit. as-65048 destroyed. as-81271 destroyed. as-87300 destroyed. as-40092 destroyed. Aluminum Leg severed. The unstable cave ceiling collapses. as-75287 destroyed. Destroyed Asb. Hover Unit. Destroyed Asb. Blade. Destroyed Asb. Hover Unit. Grenade Launcher destroyed. Autogun destroyed. The unstable cave ceiling collapses. as-63346 destroyed. Switching to secondary target: as-82844. The unstable cave ceiling collapses. Map ----- +----------------------------------------------------+ | ???????????????????????????????????? | | ???????????????????????????????????? | | ???????????????????????????????????? | | ???????????????????????????????????? | | ???????????????????????????????????? | | ???????????????????????????????????? | | ???????????????????????????????????? | | ???????????????????????????????????? | | ???????????????????????????????????? | | ???????????????????????????????????? | | ???????????????????????????????????? | | ?????? ????????????????????????????? | | ?????? ???????????????????????????? | | ?????? ???????????????????????????? | | ??????# ?????????????? ???????????? | | ?????## ????????????? #??????????? | | ?????# % ??????????? ???????????? | | ???### ??????????? ????????????? | | ???# a ?????????? #????????????? | | ??## #????????? ##???????????? | | ??# #?##????# ###?????????? | | ??# ####### ##????????? | | ??# # #????????? | | ??# aaa # #????????? | | ??# #????????? | | ??# a@ #????????? | | ???# ##???????? | | ???## # #???????? | | ????###### ## #????????? | | ?????????### #####????????? | | ??????????# ##????????????? | | ??????????# ## #?????????????? | | ??????????## ##??#?????????????? | | ???????????## #?????????????????? | | ????????????## ##????????????????? | | ?????????????# #????????????????? | | ?????????????# #????????????????? | | ?????????????# #????????????????? | | ?????????????## ##???????????????? | | ?????????????## #???????????????? | | ???????????### #???????????????? | | ??????????## ##???????????????? | | ?????????## ##????????????????? | | ?????????# ##????????????????## | | ?????????# ##????????????????# | | ?????????## ##??????????????### | | ??????????## #??????????????## | | ???????????# #??????????????# | | ???????????# ##?????????????# | | ???????????# ##????????????# | +----------------------------------------------------+ Best States ------------- Heat Dissipation 25 Energy Generation 10 Energy Capacity 250 Matter Stores 300 Matter Capacity 300 Sight Range 16 Terrain Scan Density 10 Evasion (%) 40 Targeting Accuracy 6 Recoil Reduction 2 Item Schematics ----------------- None Robot Schematics ------------------ None Fabricated ------------ Nothing Alien Tech Used ----------------- None Achievements -------------- None Challenges ------------ None Game ------ Seed ClaymoresBehemothWarhead Manual? 0 Play Time 00:15:48 Cumulative 36.1 hours Start 2023.05.31 @ 20:44:05 End 2023.05.31 @ 20:57:09 Sessions 1 Manual Loads 0 Difficulty Rogue Special Mode None Game No. 35 Rogue 35 Adventurer 0 Explorer 0 Win Type - Total 0 Types 0/0/0/0/0/0/0/0/0 Lore% 23 Gallery% 29 Achievement% 24 Wizard Run 0 Options --------- ASCII 0 Keyboard 0 Movement Numpad Keybinds 0 Fullscreen 1 Font 18/SmallcapsGlow Map View 76x50 Tactical HUD 0 Map Filters NONE Filters NONE Steam 1 RUN: 89d26a18-0e44-4a4b-a8ec-0ad5f86586e5